fUSD/lending_fUSD_20260202
["ID","MTS","AMOUNT","RATE_DAILY","PERIOD"]
[404338982,1770067842287,-350.93477356,0.00014521,2]
[404338983,1770067842296,-1000.0,0.00014521,2]
[404338984,1770067842306,-1000.0,0.00014521,2]
[404338985,1770067842316,-1000.0,0.00014521,2]
[404338986,1770067842326,-1001.69360348,0.00014521,2]
[404338987,1770067842335,-1000.0,0.00014521,2]
[404338988,1770067842345,-1000.0,0.00014521,2]
[404338989,1770067842354,-1046.2635897,0.00014521,2]
[404338990,1770067842364,-181.57502123,0.00014521,2]
[404338991,1770067842373,-259.40505883,0.00014521,2]
[404338992,1770067842382,-1000.0,0.00014521,2]
[404338993,1770067842392,-545.34481126,0.00014521,2]
[404338994,1770067842402,-1000.0,0.00014521,2]
[404338995,1770067842411,-1000.0,0.00014521,2]
[404338996,1770067842421,-1000.0,0.00014521,2]
[404338997,1770067842434,-1000.0,0.00014521,2]
[404338998,1770067842444,-245.04092473,0.00014521,2]
[404338999,1770067842453,-156.95111861,0.00014521,2]
[404339000,1770067842462,-1000.0,0.00014521,2]
[404339001,1770067842472,-1000.0,0.00014521,2]
[404339002,1770067842481,-1000.0,0.00014521,2]
[404339003,1770067842490,-652.81544497,0.00014521,2]
[404339004,1770067842500,-1000.0,0.00014521,2]
[404339005,1770067842510,-868.9,0.0001458,2]
[404339006,1770067842519,-1187.7,0.00014597,2]
[404339007,1770067842529,-500.0,0.00014597,2]
[404339008,1770067842538,-52351.12,0.00014598,2]
[404339009,1770067842547,-773.23,0.00014635,2]
[404339010,1770067842557,-483.76,0.00014658,2]
[404339011,1770067842566,-868.9,0.00014854,2]
[404339012,1770067842575,-3253.06679877,0.00014859,2]
[404339013,1770067842585,-179.5507367,0.000149,2]
[404339014,1770067842594,-773.23,0.00014909,2]
[404339015,1770067842603,-1651.81367706,0.00014917,2]
[404339016,1770067842616,-201.93286099,0.00014917,2]
[404339017,1770067842625,-242.15909246,0.00014917,2]
[404339018,1770067842635,-483.76,0.00014932,2]
[404339019,1770067842644,-500.0,0.00014932,2]
[404339020,1770067842654,-5003.0,0.00015,2]
[404339021,1770067842663,-1186.16205934,0.00015,2]
[404339022,1770067842672,-2140.76085253,0.00015,14]
[404339023,1770067842682,-6770.64481546,0.00015,2]
[404339024,1770067842691,-369988.95313789,0.00015,3]
[404339025,1770067842700,-29378.89718232,0.00015,2]
[404339026,1770067842710,-418.0702292,0.00015,2]
[404339027,1770067842719,-1500.0,0.00015068,2]
[404339028,1770067842728,-1500.0,0.00015068,2]
[404339029,1770067842737,-1500.0,0.00015068,2]
[404339030,1770067842746,-1500.0,0.00015068,2]
[404339031,1770067842756,-1500.0,0.00015068,2]
[404339032,1770067842765,-1023.62775042,0.00015068,2]
[404339033,1770067842775,-1506.79391477,0.00015068,2]
[404339034,1770067842784,-1500.0,0.00015068,2]
[404339035,1770067842793,-1500.0,0.00015068,2]
[404339036,1770067842804,-1500.0,0.00015068,2]
[404339037,1770067842813,-1500.0,0.00015068,2]
[404339038,1770067842822,-550.7159852,0.00015068,2]
[404339039,1770067842832,-411.8365552,0.00015068,2]
[404339040,1770067842841,-1500.0,0.00015068,2]
[404339041,1770067842850,-900.0,0.00015068,2]
[404339042,1770067842860,-868.9,0.00015128,2]
[404339043,1770067842869,-57320.85239778,0.00015128,2]
[404339044,1770067842878,-773.23,0.00015183,2]
[404339045,1770067842888,-483.76,0.00015205,2]
[404339047,1770067842898,-1517.64,0.000153,2]
[404339049,1770067842907,-8759.33,0.00015382,2]
[404339052,1770067842918,-508.63384765,0.000154,2]
[404339053,1770067842927,-988.5,0.00015402,2]
[404339054,1770067842936,-6453.0,0.00015435,2]
[404339055,1770067842946,-2129.0,0.0001544,2]
[404339056,1770067842955,-773.23,0.00015457,2]
[404339057,1770067842965,-346.92554585,0.00015463,2]
[404339058,1770067842974,-599.60298507,0.00015464,2]
[404339059,1770067842984,-747.8093786,0.00015464,2]
[404339060,1770067842993,-1712.93078312,0.00015465,2]
[404339061,1770067843002,-209.40437684,0.00015465,2]
[404339063,1770067843011,-251.11897888,0.00015465,2]
[404339065,1770067843020,-500.0,0.00015473,2]
[404339067,1770067843030,-500.0,0.00015473,2]
[404339069,1770067843039,-500.0,0.00015473,2]
[404339071,1770067843048,-500.0,0.00015473,2]
[404339072,1770067843058,-500.0,0.00015473,2]
[404339073,1770067843067,-500.0,0.00015473,2]
[404339074,1770067843078,-500.0,0.00015473,2]
[404339075,1770067843089,-500.0,0.00015473,2]
[404339076,1770067843098,-500.0,0.00015473,2]
[404339077,1770067843108,-500.0,0.00015473,2]
[404339078,1770067843117,-500.0,0.00015473,2]
[404339079,1770067843126,-160.54295648,0.00015473,2]
[404339080,1770067843136,-500.40906893,0.00015473,2]
[404339081,1770067843146,-464.35211832,0.00015473,2]
[404339082,1770067843155,-151.07783782,0.00015473,2]
[404339083,1770067843164,-500.0,0.00015473,2]
[404339084,1770067843175,-500.0,0.00015473,2]
[404339085,1770067843194,-340.09137446,0.00015473,2]
[404339086,1770067843205,-500.0,0.00015473,2]
[404339087,1770067843215,-500.41005015,0.00015473,2]
[404339088,1770067843226,-160.61738464,0.00015473,2]
[404339089,1770067843235,-500.0,0.00015473,2]
[404339090,1770067843246,-559.67308476,0.00015473,2]
[404339091,1770067843258,-500.0,0.00015473,2]
[404339092,1770067843268,-500.0,0.00015473,2]
[404339093,1770067843277,-500.0,0.00015473,2]
[404339094,1770067843287,-500.0,0.00015473,2]
[404339095,1770067843298,-500.0,0.00015473,2]
[404339096,1770067843307,-500.63586771,0.00015473,2]
[404339097,1770067843319,-200.70028911,0.00015473,2]
[404339098,1770067843329,-460.30125151,0.00015473,2]
[404339099,1770067843339,-500.0,0.00015473,2]
[404339100,1770067843348,-500.0,0.00015473,2]
[404339101,1770067843358,-500.0,0.00015473,2]
[404339102,1770067843367,-558.47394043,0.00015473,2]
[404339103,1770067843376,-550.09529227,0.00015473,2]
[404339104,1770067843385,-185.46503654,0.00015473,2]
[404339105,1770067843394,-500.0,0.00015473,2]
[404339106,1770067843404,-500.0,0.00015473,2]
[404339107,1770067843413,-500.0,0.00015473,2]
[404339108,1770067843421,-500.0,0.00015473,2]
[404339109,1770067843433,-500.0,0.00015473,2]
[404339110,1770067843443,-168.03217975,0.00015473,2]
[404339111,1770067843452,-500.0,0.00015473,2]
[404339112,1770067843461,-500.0,0.00015473,2]
[404339113,1770067843471,-500.0,0.00015473,2]
[404339114,1770067843479,-500.0,0.00015473,2]
[404339115,1770067843488,-500.0,0.00015473,2]
[404339116,1770067843497,-500.0,0.00015473,2]
[404339117,1770067843508,-500.0,0.00015473,2]
[404339118,1770067843517,-486.29318482,0.00015473,2]
[404339119,1770067843526,-593.37800921,0.00015473,2]
[404339120,1770067843535,-565.00011393,0.00015473,2]
[404339121,1770067843544,-500.0,0.00015473,2]
[404339122,1770067843553,-500.0,0.00015473,2]
[404339123,1770067843562,-500.0,0.00015473,2]
[404339124,1770067843572,-500.0,0.00015473,2]
[404339125,1770067843581,-483.76,0.00015479,2]
[404339126,1770067843590,-500.0,0.0001548,2]
[404339127,1770067843598,-827.96194417,0.00015616,2]
[404339128,1770067843607,-1376.09004687,0.00015616,2]
[404339129,1770067843616,-2000.0,0.00015616,2]
[404339130,1770067843625,-2000.0,0.00015616,2]
[404339131,1770067843634,-1006.04407484,0.00015616,2]
[404339132,1770067843643,-1666.54524169,0.00015616,2]
[404339133,1770067843652,-2000.0,0.00015616,2]
[404339134,1770067843661,-2000.0,0.00015616,2]
[404339135,1770067843671,-2000.0,0.00015616,2]
[404339136,1770067843681,-2000.0,0.00015616,2]
[404339137,1770067843690,-483.79755852,0.00015753,2]
[404339138,1770067843700,-846.60196438,0.00015913,2]
[404339139,1770067843709,-3253.06679877,0.00015914,2]
[404339140,1770067843719,-5000.0,0.0001596,2]
[404339141,1770067843728,-1187.7,0.00015961,2]
[404339142,1770067843737,-500.0,0.00015961,2]
[404339143,1770067843746,-626.72,0.00015961,2]
[404339144,1770067843756,-294770.6849928,0.00015962,2]
[404339145,1770067843765,-944.63661864,0.0001599,2]
[404339146,1770067843775,-151.0,0.00015997,2]
[404339147,1770067843784,-956.83032625,0.00016,2]
[404339148,1770067843793,-270.91542523,0.00016,2]
[404339149,1770067843802,-421.15115649,0.00016,2]
[404339150,1770067843811,-2775832.00105915,0.00016,4]
[404339151,1770067843821,-1776.30922209,0.00016013,2]
[404339152,1770067843831,-217.15233878,0.00016013,2]
[404339153,1770067843839,-260.4103811,0.00016013,2]
[404339154,1770067843849,-1000.0,0.00016021,2]
[404339155,1770067843858,-486.90150068,0.00016021,2]
[404339156,1770067843868,-1000.0,0.00016021,2]
[404339157,1770067843880,-1128.44291984,0.00016021,2]
[404339158,1770067843890,-1000.0,0.00016021,2]
[404339159,1770067843901,-335.25607575,0.00016021,2]
[404339160,1770067843910,-1000.0,0.00016021,2]
[404339161,1770067843922,-500.0,0.00016021,2]
[404339162,1770067843932,-1000.0,0.00016021,2]
[404339163,1770067843942,-1000.0,0.00016021,2]
[404339164,1770067843952,-500.0,0.00016021,2]
[404339165,1770067843963,-1000.0,0.00016021,2]
[404339166,1770067843973,-1000.0,0.00016021,2]
[404339167,1770067843983,-1000.0,0.00016021,2]
[404339168,1770067843992,-1000.0,0.00016021,2]
[404339169,1770067844002,-501.28378078,0.00016021,2]
[404339171,1770067844012,-1000.0,0.00016021,2]
[404339173,1770067844022,-1000.0,0.00016021,2]
[404339174,1770067844031,-1000.0,0.00016021,2]
[404339175,1770067844042,-1000.0,0.00016021,2]
[404339176,1770067844051,-1000.0,0.00016021,2]
[404339177,1770067844061,-500.0,0.00016021,2]
[404339178,1770067844071,-1000.0,0.00016021,2]
[404339179,1770067844081,-1000.0,0.00016021,2]
[404339180,1770067844092,-1000.0,0.00016021,2]
[404339181,1770067844102,-1000.0,0.00016021,2]
[404339182,1770067844112,-1000.0,0.00016021,2]
[404339183,1770067844122,-500.0,0.00016028,2]
[404339184,1770067844131,-57320.85239778,0.00016052,2]
[404339185,1770067844142,-4433.15,0.00016116,2]
[404339186,1770067844151,-473.78998774,0.00016164,2]
[404339187,1770067844160,-809.50611672,0.00016164,2]
[404339188,1770067844169,-1812.26829567,0.00016164,2]
[404339189,1770067844179,-1018.20605405,0.00016164,2]
[404339190,1770067844188,-2500.0,0.00016164,2]
[404339191,1770067844198,-2500.0,0.00016164,2]
[404339192,1770067844207,-159.60859955,0.00016197,2]
[404339193,1770067844216,-53031.02999122,0.000162,5]
[404339194,1770067844225,-200.0,0.0001634,2]
[404339195,1770067844233,-898.25,0.00016363,2]
[404339196,1770067844243,-519.2350024,0.00016437,2]
[404339197,1770067844252,-900.0,0.00016438,2]
[404339198,1770067844262,-800.0,0.00016438,2]
[404339199,1770067844271,-1725.59276534,0.00016444,2]
[404339200,1770067844281,-201.39718201,0.00016473,2]
[404339201,1770067844293,-501.25058856,0.00016493,2]
[404339202,1770067844302,-1322.80823378,0.00016493,2]
[404339203,1770067844312,-2333.59052185,0.00016493,2]
[404339204,1770067844322,-455.77,0.00016515,2]
[404339205,1770067844331,-1842.03266331,0.00016561,2]
[404339206,1770067844340,-225.18697532,0.00016561,2]
[404339207,1770067844350,-270.0455652,0.00016561,2]
[404339208,1770067844363,-493.57784368,0.00016568,2]
[404339209,1770067844374,-1000.0,0.00016568,2]
[404339210,1770067844383,-432.32446254,0.00016568,2]
[404339211,1770067844393,-1000.0,0.00016568,2]
[404339212,1770067844403,-500.0,0.00016568,2]
[404339213,1770067844413,-385.68955508,0.00016568,2]
[404339214,1770067844423,-500.0,0.00016568,2]
[404339215,1770067844435,-503.30357537,0.00016568,2]
[404339216,1770067844444,-1000.0,0.00016568,2]
[404339217,1770067844454,-1502.44429427,0.00016568,2]
[404339218,1770067844463,-1136.09023448,0.00016568,2]
[404339219,1770067844474,-1500.0,0.00016568,2]
[404339220,1770067844485,-500.0,0.00016568,2]
[404339221,1770067844497,-1500.0,0.00016568,2]
[404339222,1770067844508,-500.0,0.00016568,2]
[404339223,1770067844518,-908.63714551,0.00016568,2]
[404339224,1770067844527,-1503.56470175,0.00016568,2]
[404339225,1770067844538,-500.0,0.00016576,2]
[404339226,1770067844548,-360.77468192,0.000166,2]
[404339227,1770067844557,-3000.0,0.00016712,2]
[404339228,1770067844567,-2016.45192786,0.00016712,2]
[404339229,1770067844576,-410.61,0.00016748,2]
[404339230,1770067844587,-4817.54,0.00016748,2]
[404339231,1770067844598,-500.0,0.00016792,2]
[404339232,1770067844608,-500.0,0.00016792,2]
[404339233,1770067844618,-359.76179104,0.00016832,2]
[404339234,1770067844629,-3253.06679877,0.00016968,2]
[404339235,1770067844639,-57320.85239778,0.00016976,2]
[404339236,1770067844648,-9035.0,0.00016979,2]
[404339237,1770067844659,-284.86,0.0001699,2]
[404339238,1770067844669,-151.0,0.00016997,2]
[404339239,1770067844681,-970812.16483943,0.00017,2]
[404339240,1770067844691,-159.60859955,0.00017007,2]
[404339241,1770067844700,-205.0,0.00017046,2]
[404339242,1770067844711,-1910.18787185,0.00017109,2]
[404339243,1770067844720,-233.51889341,0.00017109,2]
[404339244,1770067844732,-280.03725112,0.00017109,2]
[404339245,1770067844742,-501.43163729,0.00017116,2]
[404339246,1770067844753,-1500.0,0.00017116,2]
[404339247,1770067844764,-500.0,0.00017124,2]
[404339248,1770067844775,-205.0,0.00017169,2]
[404339249,1770067844785,-205.0,0.00017175,2]
[404339250,1770067844795,-205.0,0.00017186,2]
[404339251,1770067844807,-181.63743456,0.00017216,2]
[404339252,1770067844818,-205.0,0.00017252,2]
[404339253,1770067844829,-475.39944629,0.0001726,2]
[404339254,1770067844839,-205.0,0.00017353,2]
[404339255,1770067844848,-205.0,0.00017361,2]
[404339256,1770067844858,-13442.50995431,0.000175,2]
[404339257,1770067844868,-718.43917855,0.00017534,2]
[404339258,1770067844877,-205.0,0.00017558,2]
[404339259,1770067844887,-205.0,0.00017565,2]
[404339260,1770067844899,-205.0,0.00017582,2]
[404339261,1770067844909,-205.0,0.00017606,2]
[404339262,1770067844919,-1980.86482311,0.00017657,2]
[404339263,1770067844930,-242.15909246,0.00017657,2]
[404339264,1770067844940,-290.39862941,0.00017657,2]
[404339265,1770067844949,-360.21,0.00017664,2]
[404339266,1770067844960,-500.0,0.00017672,2]
[404339267,1770067844970,-410.61,0.00017678,2]
[404339268,1770067844980,-272.43,0.00017752,2]
[404339269,1770067844990,-502.14782899,0.000178,3]
[404339270,1770067844999,-159.60859955,0.00017817,2]
[404339271,1770067845010,-25000.0,0.00017821,3]
[404339272,1770067845021,-25000.0,0.0001783,3]
[404339273,1770067845031,-25000.0,0.00017838,3]
[404339274,1770067845041,-25000.0,0.00017847,3]
[404339275,1770067845051,-25000.0,0.00017856,3]
[404339276,1770067845060,-25000.0,0.00017865,3]
[404339277,1770067845070,-25000.0,0.00017874,3]
[404339278,1770067845079,-25000.0,0.00017882,3]
[404339279,1770067845089,-25000.0,0.00017891,3]
[404339280,1770067845099,-500.0,0.000179,2]
[404339281,1770067845108,-25000.0,0.000179,3]
[404339282,1770067845118,-57320.85239778,0.000179,2]
[404339283,1770067845128,-1583.98667188,0.000179,2]
[404339284,1770067845138,-437.54706565,0.000179,2]
[404339285,1770067845148,-245.05534597,0.000179,2]
[404339286,1770067845159,-205.0,0.0001795,2]
[404339287,1770067845168,-205.0,0.00017987,2]
[404339288,1770067845178,-28573.59028773,0.0001799,3]
[404339289,1770067845189,-29626.00408408,0.0001799,2]
[404339290,1770067845198,-151.0,0.00017997,2]
[404339291,1770067845208,-11591.91307845,0.00017999,2]
[404339292,1770067845218,-300.0,0.00017999,2]
[404339293,1770067845227,-300.0,0.00017999,2]
[404339294,1770067845238,-300.0,0.00017999,2]
[404339295,1770067845247,-666.0,0.00017999,2]
[404339296,1770067845257,-300.0,0.00017999,2]
[404339297,1770067845266,-391.37301584,0.00017999,2]
[404339298,1770067845276,-300.0,0.00017999,2]
[404339299,1770067845285,-150.0,0.00018,7]
[404339300,1770067845295,-2846073.29568337,0.00018,2]
[404339308,1770067845893,-151.0,0.00013259,2]
[404339310,1770067845902,-151.0,0.00013259,2]
[404339312,1770067845912,-500.0,0.00013698,2]
[404339314,1770067845922,-117.39818052,0.00013698,2]
[404339316,1770067845933,-382.60181948,0.00013698,2]
[404339318,1770067845943,-42.03016483,0.00013698,2]
[404339321,1770067845955,-457.96983517,0.00013698,2]
[404339323,1770067845965,-500.0,0.00013698,2]
[404339325,1770067845975,-500.0,0.00013698,2]
[404339327,1770067845984,-278.36387472,0.00013698,2]
[404339329,1770067845996,-352.45983561,0.00013698,2]
[404339331,1770067846006,-20956.60301166,0.00018,2]
[404339334,1770067846018,-2347.50211565,0.00018,2]
[404339350,1770067846160,-1.7e-07,0.00018,2]
[404339352,1770067846174,-393.66239999,0.00018,2]
[404339353,1770067846438,-3389.19645253,0.00018,2]
[404339354,1770067846450,-9590.83338269,0.00018,2]
[404339355,1770067846463,-6725.39,0.00018,2]
[404339356,1770067846475,-404.71969544,0.00018,2]
[404339357,1770067846486,-261.0499997,0.00018,2]
[404339358,1770067846497,-7425468.10479243,0.00018,2]
[404339359,1770067846682,-781.37,0.00018,2]
[404339360,1770067846701,-495.12496142,0.00018,2]
[404339361,1770067846834,500.0,0.0001,2]
[404339362,1770067846917,-151.0,0.00014914,2]
[404339363,1770067846929,-197706.04464809,0.00018,2]
[404339364,1770067846944,-381.52096157,0.00018,2]
[404339365,1770067846978,-6000.2941275,0.00018,2]
[404339366,1770067846989,-384.22220303,0.00018,2]
[404339367,1770067847003,-394.245,0.00018,2]
[404339368,1770067847096,-66259.76939233,0.00018,2]
[404339369,1770067851667,9500.01,9.585e-05,2]
[404339370,1770067851699,10000.01,9.585e-05,2]
[404339371,1770067851729,10000.01,9.585e-05,2]
[404339372,1770067851760,10000.01,9.585e-05,2]
[404339373,1770067851790,10000.01,9.585e-05,2]
[404339374,1770067851820,10000.01,9.585e-05,2]
[404339375,1770067851852,10000.01,9.585e-05,2]
[404339376,1770067851883,10000.01,9.585e-05,2]
[404339377,1770067851917,10000.01,9.585e-05,2]
[404339378,1770067851950,10000.01,9.585e-05,2]
[404339379,1770067851980,3633.37194723,9.585e-05,2]
[404339380,1770067852006,5000.01,9.585e-05,2]
[404339381,1770067852035,5000.01,9.585e-05,2]
[404339382,1770067852061,5000.01,9.585e-05,2]
[404339383,1770067852088,5000.01,9.585e-05,2]
[404339384,1770067852114,5000.01,9.585e-05,2]
[404339385,1770067852140,5000.01,9.585e-05,2]
[404339386,1770067852166,5000.01,9.585e-05,2]
[404339387,1770067852192,5000.01,9.585e-05,2]
[404339388,1770067858854,-1102.1189931,9.585e-05,2]
[404339389,1770067858979,-5000.01,9.585e-05,2]
[404339390,1770067859116,-5000.01,9.585e-05,2]
[404339391,1770067859262,-5000.01,9.585e-05,2]
[404339392,1770067859475,-5000.01,9.585e-05,2]
[404339393,1770067859599,-5000.01,9.585e-05,2]
[404339394,1770067859715,-5000.01,9.585e-05,2]
[404339395,1770067859815,-5000.01,9.585e-05,2]
[404339396,1770067861923,-5000.01,9.585e-05,2]
[404339397,1770067864931,-5000.01,9.585e-05,2]
[404339398,1770067865055,-5000.01,9.585e-05,2]
[404339399,1770067865207,-5000.01,9.585e-05,2]
[404339400,1770067865338,-5000.01,9.585e-05,2]
[404339401,1770067865597,-5000.01,9.585e-05,2]
[404339402,1770067865709,-5000.01,9.585e-05,2]
[404339403,1770067865823,-5000.01,9.585e-05,2]
[404339404,1770067871001,-5000.01,9.585e-05,2]
[404339405,1770067871126,-5000.01,9.585e-05,2]
[404339406,1770067871229,-5000.01,9.585e-05,2]
[404339407,1770067876986,-5000.01,9.585e-05,2]
[404339408,1770067877101,-5000.01,9.585e-05,2]
[404339409,1770067877234,-5000.01,9.585e-05,2]
[404339410,1770067883029,-5000.01,9.585e-05,2]
[404339411,1770067883144,-5000.01,9.585e-05,2]
[404339412,1770067886811,-5000.01,9.585e-05,2]
[404339413,1770067887136,-5000.01,9.585e-05,2]
[404339414,1770067887258,-5000.01,9.585e-05,2]
[404339415,1770067887394,-5000.01,9.585e-05,2]
[404339416,1770067889993,-5000.01,9.585e-05,2]
[404339417,1770067892195,-5000.01,9.585e-05,2]
[404339418,1770067893363,3363.712,9.393e-05,2]
[404339419,1770067893409,302.579,9.393e-05,2]
[404339420,1770067902157,-5000.01,9.585e-05,2]
[404339421,1770067902282,-5000.01,9.585e-05,2]
[404339422,1770067902384,-5000.01,9.585e-05,2]
[404339423,1770067902495,-5000.01,9.585e-05,2]
[404339424,1770067905282,-5000.01,9.585e-05,2]
[404339425,1770067905517,-5000.01,9.585e-05,2]
[404339426,1770067908142,-5000.01,9.585e-05,2]
[404339427,1770067908265,-5000.01,9.585e-05,2]
[404339428,1770067908522,-5000.01,9.585e-05,2]
[404339429,1770067908692,-5000.01,9.585e-05,2]
[404339430,1770067911218,-5000.01,9.585e-05,2]
[404339431,1770067921822,300.0,9.584e-05,2]
[404339433,1770067947529,9700.01,9.584e-05,2]
[404339434,1770067947559,10000.01,9.584e-05,2]
[404339435,1770067947590,10000.01,9.584e-05,2]
[404339436,1770067947617,4206.81560869,9.584e-05,2]
[404339439,1770067981539,300.0,9.584e-05,2]
[404339440,1770067981842,150.0,9.584e-05,2]
[404339442,1770067998224,200.0,9.558e-05,2]
[404339445,1770068041507,300.0,9.584e-05,2]
[404339446,1770068095064,154.94,8.075e-05,2]
[404339447,1770068095110,154.94,8.882e-05,2]
[404339448,1770068101472,1200.0,9.584e-05,2]
[404339449,1770068161513,300.0,9.584e-05,2]
[404339450,1770068162140,150.0,9.584e-05,2]
[404339451,1770068196932,199.38753179,9.584e-05,2]
[404339452,1770068210584,500.0,9.584e-05,2]
[404339453,1770068210640,259.2092566,9.584e-05,2]
[404339454,1770068220770,221.50499902,9.584e-05,2]
[404339455,1770068221831,300.0,9.584e-05,2]
[404339456,1770068230275,150.0,9.558e-05,2]
[404339457,1770068230461,500.0,9.584e-05,2]
[404339458,1770068230529,330.85368257,9.584e-05,2]
[404339459,1770068230574,422.35892133,9.584e-05,2]
[404339460,1770068230602,77.64107867,9.584e-05,2]
[404339461,1770068230776,500.0,9.584e-05,2]
[404339462,1770068230836,150.0,9.558e-05,2]
[404339463,1770068231079,500.0,9.584e-05,2]
[404339464,1770068341502,300.0,9.584e-05,2]
[404339465,1770068343453,150.0,9.584e-05,2]
[404339466,1770068369349,9550.01,9.551e-05,2]
[404339467,1770068369375,984.17,9.551e-05,2]
[404339468,1770068401983,1200.0,9.584e-05,2]
[404339469,1770068462054,300.0,9.584e-05,2]
[404339470,1770068478772,-1000.0,9.585e-05,2]
[404339471,1770068482993,-4117.66880374,9.585e-05,2]
[404339472,1770068483178,-10000.01,9.585e-05,2]
[404339473,1770068485842,-10000.01,9.585e-05,2]
[404339474,1770068486941,1000.0,9.526e-05,2]
[404339475,1770068487068,-10000.01,9.585e-05,2]
[404339476,1770068487202,-10000.01,9.585e-05,2]
[404339477,1770068487375,-10000.01,9.585e-05,2]
[404339478,1770068487510,-10000.01,9.585e-05,2]
[404339479,1770068487633,-10000.01,9.585e-05,2]
[404339480,1770068487745,-10000.01,9.585e-05,2]
[404339481,1770068491559,-10000.01,9.585e-05,2]
[404339482,1770068521902,150.0,9.584e-05,2]
[404339483,1770068531400,1000.0,9.584e-05,2]
[404339484,1770068545130,2465.6,9.573e-05,2]
[404339485,1770068581474,300.0,9.584e-05,2]
[404339486,1770068600466,-10000.01,9.585e-05,2]
[404339487,1770068601819,-10000.01,9.585e-05,2]
[404339488,1770068602116,-10000.01,9.585e-05,2]
[404339489,1770068602356,-10000.01,9.585e-05,2]
[404339490,1770068602592,-10000.01,9.585e-05,2]
[404339491,1770068603188,-10000.01,9.585e-05,2]
[404339492,1770068603210,-10000.01,9.585e-05,2]
[404339493,1770068603231,-10000.01,9.585e-05,2]
[404339494,1770068603558,-10000.01,9.585e-05,2]
[404339495,1770068606201,-10000.01,9.585e-05,2]
[404339497,1770068615415,-10000.01,9.585e-05,2]
[404339498,1770068615679,-10000.01,9.585e-05,2]
[404339499,1770068615794,-10000.01,9.585e-05,2]
[404339500,1770068615930,-10000.01,9.585e-05,2]
[404339501,1770068616076,-2698.72569626,9.585e-05,2]
[404339502,1770068616109,-1985.94300748,9.585e-05,2]
[404339503,1770068616153,-630.67259252,9.585e-05,2]
[404339504,1770068616206,-500.0,9.585e-05,2]
[404339505,1770068616239,-3384.2105,9.585e-05,2]
[404339506,1770068616296,-2231.589,9.585e-05,2]
[404339507,1770068616366,-500.0,9.585e-05,2]
[404339508,1770068616398,-500.0,9.585e-05,2]
[404339509,1770068616431,-250.0,9.585e-05,2]
[404339510,1770068616463,-250.24316891,9.585e-05,2]
[404339511,1770068616750,-250.0,9.585e-05,2]
[404339512,1770068616782,-229.0,9.585e-05,2]
[404339513,1770068616813,-1634.45172142,9.585e-05,2]
[404339514,1770068617031,-2772.62021934,9.585e-05,2]
[404339515,1770068618349,-3723.09,9.59e-05,2]
[404339516,1770068618377,-2553.83,9.59e-05,2]
[404339517,1770068618483,-3673.59,9.616e-05,2]
[404339518,1770068618527,-2652.83,9.689e-05,2]
[404339519,1770068621340,-10000.01,9.689e-05,2]
[404339520,1770068621475,-10000.01,9.689e-05,2]
[404339521,1770068621690,-4972.66,9.689e-05,2]
[404339522,1770068621773,-54.69,9.689e-05,2]
[404339523,1770068621869,-150.99,9.689e-05,2]
[404339524,1770068621901,-1201.39,9.689e-05,2]
[404339525,1770068621966,-7295.25,9.689e-05,2]
[404339526,1770068622004,-2704.74,9.689e-05,2]
[404339527,1770068622046,-4590.53,9.689e-05,2]
[404339528,1770068622144,-10000.01,9.689e-05,2]
[404339529,1770068622390,-4590.56,9.689e-05,2]
[404339530,1770068622423,-818.89,9.689e-05,2]
[404339531,1770068627559,-10000.01,9.689e-05,2]
[404339532,1770068627756,-10000.01,9.689e-05,2]
[404339533,1770068627968,-0.04,9.689e-05,2]
[404339534,1770068627995,-9999.93,9.689e-05,2]
[404339535,1770068630239,-84.41,9.689e-05,2]
[404339536,1770068630321,-5000.01,9.689e-05,2]